Workbook

Sheet 1999_00-Deutsch (hidden)
A1: Asclepion-Meditec AG
A2: Kapitalflussrechnung
A3: für die Geschäftsjahre zum 30. September 2000 und 2001
G5: 1.95583
G6: 30. September | I6: 30. September
G7: 2000 | I7: 2001
G8: TDM | I8: TDM
A11: Cash Flow aus laufender Geschäftstätigkeit:
B12: Jahresüberschuss | G12: 3827 | I12: -14865
B13: Anpassung zur Überleitung des Jahresüberschusses/Jahresfehlbetrags
B14: zur Nettoveränderung der liquiden Mittel aus laufender Geschäftstätigkeit:
C15: Abschreibungen | G15: 2273 | I15: 2334
C16: Verluste /(Gewinne) aus Abgang von Sachanlagevermögen | G16: -72 | I16: 85
C17: Zahlungsunwirksame Erträge | G17: 0 | I17: =-(4418+5400+4271+794) -> -14883
C18: Zuführung zu Wertberichtigungen | G18: 0 | I18: 13190
C19: Auswirkung von Wechselkursänderungen | G19: -1815 | I19: 0
C20: Anpassung Ertragsteuern für Kosten im Zusammenhang mit dem Börsengang | G20: 5291 | I20: 0
C21: Latente Steuern | G21: -706 | I21: =-4271+505 -> -3766
C22: Veränderung bei Vermögensgegenständen und Verbindlichkeiten:
C23: Erhöhung der Forderungen an verbundene Unternehmen | D23: (Erhöhung) / Verringerung der Forderungen
E24: und Dritte | G24: -23032 | I24: -3319
C25: Erhöhung Vorräte | D25: Erhöhung Vorräte | G25: -1529 | I25: -8688
C26: (Erhöhung) / Verringerung der aktiven Rechnungs- | D26: (Erhöhung) / Verringerung der aktiven Rechnungs-
E27: abgrenzung und sonstiger Vermögensgegenstände | G27: -1432 | I27: -4835
C28: (Erhöhung) / Verringerung aktivierter Börseneinführungskosten | D28: Erhöhung aktivierter Börseneinführungskosten | G28: 500 | I28: 0
C29: Erhöhung / (Verringerung) der Verbindlichkeiten | D29: Erhöhung / (Verringerung) der Verbindlichkeiten
E30: an verbundene Unternehmen und Dritte | G30: 1616 | I30: =-523 -> -523
C31: Erhöhung / (Verringerung) der Rückstellungen, passiven | D31: Erhöhung / (Verringerung) der Rückstellungen, passiven
E32: Rechnungsabgrenzungen und sonstigen Verbindlichkeiten | G32: 3088 | I32: 1311
E33: Gesamte Anpassungen | G33: =SUM(G15:G32)-1 -> -15819 | I33: =SUM(I15:I32) -> -19094
D34: Netto-Kapitalzufluss (-abfluss) aus laufender Geschäftstätigkeit | E34: Netto-Kapitalabfluss aus laufender Geschäftstätigkeit | G34: =+G12+G33 -> -11992 | I34: =+I12+I33 -> -33959
A35: Cash Flow aus der Investitionstätigkeit:
B36: Erwerb von Sachanlagevermögen | G36: -2255 | I36: -17862
B37: Erlöse aus dem Verkauf von Sachanlagevermögen | G37: 125 | I37: 14
B38: Erwerb von Minderheitenbeteiligungen an nahestehenden Unternehmen | G38: -3548 | I38: -1301
B39: Gewährung von Darlehen | G39: -113 | I39: -6984
E40: Netto-Kapitalabfluss aus Investitionstätigkeit | G40: =SUM(G36:G39) -> -5791 | I40: =SUM(I36:I39) -> -26133
A41: Cash Flow aus Finanzierungstätigkeit:
B42: Einnahmen aus der Ausgabe von Stückaktien | G42: 113994 | I42: 0
B43: Aufnahme kurzfristiger Kredite | G43: 86 | I43: 3162
B44: Rückzahlung kurzfristiger Kredite | G44: -29386 | I44: -86
B45: Aufnahme langfristiger Kredite | G45: 125 | I45: 10500
B46: Rückzahlung langfristiger Kredite | G46: -1914 | I46: -90
B47: Rückzahlungen unter Leasingverträgen | G47: -80 | I47: -686
B48: Erlöse aus Sale/Leaseback Transaktion | G48: 980 | I48: 2681
E49: Netto-Kapitalzufluss aus Finanzierungstätigkeit | G49: =SUM(G42:G48) -> 83805 | I49: =SUM(I42:I48) -> 15481
A50: Auswirkung von Wechselkursänderungen | G50: -10 | I50: 23
A51: Netto-Erhöhung (Verringerung) der liquiden Mittel | G51: =+G34+G40+G49+G50-1 -> 66011 | I51: =+I34+I40+I49+I50 -> -44588
A52: Liquide Mittel am Jahresbeginn | G52: 168 | I52: 66179
A53: Liquide Mittel am Jahresende | G53: =+G51+G52 -> 66179 | I53: =+I51+I52 -> 21591
A55: Ergänzende Angaben zum Cash Flow:
B56: gezahlte Zinsen | G56: 361.9946519 | I56: 850
B57: gezahlte Steuern vom Einkommen und Ertrag | G57: 1012.357925 | I57: 1265
A59: Nicht zahlungswirksame Investitions- und Finanzierungstätigkeiten
B60: Umwandlung der Kapitalrücklage in Grundkapital | G60: 3748.792073 | I60: 0
B61: Umwandlung Verbindlichkeiten für deferred shares in Grundkapital | G61: 199.9151255 | I61: 0
B62: Umwandlung Verbindlichkeiten für deferred shares in Kapitalrücklage | G62: 399.8302511 | I62: 0
B63: Umbuchung von Vorratsvermögen in Sachanlagevermögen | G63: 161 | I63: 369
B64: Umbuchung von Forderungen aus Lieferungen und Leistungen
C65: in Finanzanlagen | G65: 0 | I65: 6260
A68: Auf die nachfolgenden Erläuterungen im Anhang wird verwiesen

Sheet CF Deutsch
A2: Carl Zeiss Meditec AG
A3: Konzern-Kapitalflussrechnung (IFRS) 1. Oktober 2013 bis 31. März 2014
G5: Geschäftsjahr 2013/2014 | I5: Geschäftsjahr 2012/2013*
G6: 1. Oktober 2013 - | I6: 1. Oktober 2012 -
F7: Anhang | G7: 31. März 2014 | I7: 31. März 2013
G8: € Tsd. | I8: =+G8 -> € Tsd.
A10: Cashflow aus der gewöhnlichen Geschäftstätigkeit:
B12: Konzernergebnis | G12: 44147 | I12: 46912
B14: Anpassung zur Überleitung des Konzernergebnisses
B15: zur Nettoveränderung der liquiden Mittel aus laufender Geschäftstätigkeit:
B17: Ertragsteueraufwand | F17: (8) | G17: 22355 | I17: 23074
B18: Ertrag aus der Veräußerung Mikroskopie-Geschäft Optronik | G18: -146 | I18: 0
B19: Zinserträge / Zinsaufwendungen | F19: (7) | G19: 2223 | I19: 1541
B20: Ergebnis aus At-Equity bewerteten Finanzanlagen | F20: (7) | I20: 0
B21: Ergebnis aus sonstigen Beteiligungen | F21: (7) | I21: 0
B22: Abschreibungen | F22: (12) (13) | G22: 9348 | I22: 8531
B23: Wertaufholungen | F23: (13) | I23: 0
B24: Abschreibungen auf Finanzanlagen | F24: (7) | I24: 0
B25: Gewinne/Verluste aus Abgang/Abwertung von Anlagevermögen | G25: 61 | I25: -40
B26: Erhaltene Dividenden | I26: 0
B27: Erhaltene Zinsen | G27: 928 | I27: 2234
B28: Gezahlte Zinsen | G28: -620 | I28: -910
B29: Erstattete Ertragsteuern | G29: 1217 | I29: 1608
B30: Gezahlte Ertragsteuern | G30: -30170 | I30: -22504
B31: Sonstige zahlungsunwirksame Erträge | G31: -1327 | I31: 0
B33: Veränderungen des Working Capitals:
C35: Forderungen aus Lieferungen und Leistungen | F35: (18) | G35: -1399 | I35: -23555
C36: Vorräte | F36: (17) | G36: -11923 | I36: -11895
C37: Sonstige Vermögenswerte | F37: (16) (19) (20) | G37: -6319 | I37: -5234
C38: Verbindlichkeiten aus Lieferungen und Leistungen | G38: -8517 | I38: -4742
C39: Ertragsteuerverbindlichkeiten | I39: 0
C40: Rückstellungen und finanzielle Verbindlichkeiten | F40: (23) (24) (26) | G40: 2320 | I40: 3395
C41: Sonstige Verbindlichkeiten | F41: (27) | G41: 130 | I41: -224
B43: Gesamte Anpassungen | G43: =SUM(G17:G42) -> -21839 | I43: =SUM(I17:I42) -> -28721
B44: Netto-Kapitalzufluss aus der gewöhnlichen Geschäftstätigkeit | G44: =+G12+G43 -> 22308 | I44: =+I12+I43 -> 18191
A46: Cashflow aus der Investitionstätigkeit:
B48: Veränderung liquide Mittel mit Verfügungsbeschränkung | G48: 0 | I48: 0
B49: Investitionen in Sachanlagen | F49: (13) | G49: -4040 | I49: -3206
B50: Investitionen in sonstige immaterielle Vermögenswerte | F50: (12) | G50: -2242 | I50: -579
B51: Investitionen in Planvermögen | F51: (24) | I51: 0
B52: Erlöse aus dem Verkauf von Anlagevermögen | G52: 411 | I52: 151
B53: Erlöse aus der Liquidation von At-Equity Beteiligungen | I53: 0
B54: Einzahlungen aus Festgeldanlagen | G54: 140000 | I54: 120000
B55: Auszahlungen für Festgeldanlagen | G55: -118000 | I55: -140000
B56: Verkauf von Wertpapieren | F56: (28)
B57: Erwerb des chirurgischen Geschäftes (Carl Zeiss Surgical GmbH, Carl Zeiss Surgical Inc.) gegen Gewährung von Aktien
B58: Erwerb IOL/ OVD - Geschäftes IMEX Clinic S.L., Spanien | F58: (3) | G58: -716 | I58: -1907
B59: Erwerb konsolidierter Unternehmen / Geschäftsbetriebe abzgl. erhaltener Finanzmittel | F59: (3)
C60: (Optronik A.S., Türkei: | G60: -10800 | I60: 0
C61: Aaren Scientific Inc., USA:) | G61: -51206 | I61: 0
B62: Einzahlungen aus der Veräußerung des Mikroskopie-Geschäftes der Optronik | G62: 2208 | I62: 0
B64: Netto-Kapitalabfluss aus der Investitionstätigkeit | G64: =SUM(G48:G62) -> -44385 | I64: =SUM(I48:I61) -> -25541
A66: Cashflow aus der Finanzierungstätigkeit:
B67: Aufnahme/(Rückzahlung) der kurzfristigen Kredite | G67: -101 | I67: -22
B68: Aufnahme/(Rückzahlung) der langfristigen Kredite | F68: (25) | G68: -277 | I68: -254
B69: Rückzahlungen von kurzfristigen Darlehen von nahe stehenden Unternehmen | F69: (35)
B70: Auszahlung aus der Gewährung kurzfristigen Darlehen an nahe stehenden Unternehmen
B71: Rückzahlungen von langfristigen Darlehen von nahe stehenden Unternehmen | F71: (26) (35)
B72: Einzahlungen aus der Übernahme von Pensionsverpflichtungen durch die Carl Zeiss Meditec Japan
B73: (Zunahme)/Abnahme der Forderungen aus Finanzausgleich | F73: (2t) (34) | G73: 64807 | I73: 44314
B74: Zunahme/(Abnahme) der Verbindlichkeiten aus Finanzausgleich | F74: (2t) (34) | G74: 840 | I74: -4207
B75: Rückzahlung von Wandelschuldverschreibungen der Ioltech
B76: Zunahme/(Abnahme) der Verbindlichkeiten aus Finanzierungsleasing | F76: (29) | G76: -890 | I76: -901
B77: Einnahmen aus Kapitalerhöhung | F77: (24)
B78: Kosten der Kapitalerhöhung (vor Steuern) | F78: (24)
B79: Dividendenzahlung an Minderheitsaktionäre der Carl Zeiss Meditec Co. Ltd. (Japan) | F79: (13)
B80: Dividendenzahlung an die Aktionäre der Carl Zeiss Meditec AG | F80: (10) | G80: -36589 | I80: -32524
B81: Erwerb von Anteilen nicht-beherrschender Gesellschafter
B83: Netto-Kapitalzufluss/(-abfluss) aus der Finanzierungstätigkeit | G83: =SUM(G66:G82) -> 27790 | I83: =SUM(I66:I82) -> 6406
A85: Einfluss von Wechselkursänderungen auf Zahlungsmittel und Zahlungsmitteläquivalente | G85: -282 | I85: -968
A86: Zunahme/(Abnahme) der Zahlungsmittel und Zahlungsmitteläquivalente | G86: =+G44+G64+G83+G85 -> 5431 | I86: =+I44+I64+I83+I85 -> -1912
A87: Zahlungsmittel und Zahlungsmitteläquivalente am Beginn des Berichtszeitraumes | F87: (21) | G87: 6286 | I87: 9526
A88: Zahlungsmittel und Zahlungsmitteläquivalente am Ende des Berichtszeitraumes | F88: (21) | G88: =+G86+G87 -> 11717 | I88: =+I86+I87 -> 7614
A91: * Das Vorjahr wurde aufgrund des geänderten IAS 19 angepasst.
A92: Der nachfolgende Konzernanhang ist integraler Bestandteil des ungeprüften Konzernabschlusses.

Sheet CF Englisch
A2: Carl Zeiss Meditec AG
A3: Consolidated statement of cash flows (IFRS) for the period from 1 October 2013 to 31 March 2014
G5: Financial year 2013/2014 | I5: Financial year 2012/2013*
G6: 1 October 2013 - | I6: 1 October 2012 -
F7: Note | G7: 31 March 2014 | I7: 31 March 2013
G8: € '000 | I8: =+G8 -> € '000
A10: Cash flows from operating activities: | F10: =IF('CF Deutsch'!F10<>"",'CF Deutsch'!F10,"") -> 
F11: =IF('CF Deutsch'!F11<>"",'CF Deutsch'!F11,"") -> 
B12: Net income | F12: =IF('CF Deutsch'!F12<>"",'CF Deutsch'!F12,"") ->  | G12: =+'CF Deutsch'!G12 -> 44147 | I12: =+'CF Deutsch'!I12 -> 46912
F13: =IF('CF Deutsch'!F13<>"",'CF Deutsch'!F13,"") -> 
B14: Adjustments to reconcile net income to net cash provided by / (used in) | F14: =IF('CF Deutsch'!F14<>"",'CF Deutsch'!F14,"") -> 
B15: operating activities | F15: =IF('CF Deutsch'!F15<>"",'CF Deutsch'!F15,"") -> 
F16: =IF('CF Deutsch'!F16<>"",'CF Deutsch'!F16,"") -> 
C17: Income tax expenses | F17: =IF('CF Deutsch'!F17<>"",'CF Deutsch'!F17,"") -> (8) | G17: =+'CF Deutsch'!G17 -> 22355 | I17: =+'CF Deutsch'!I17 -> 23074
C18: Result from carve-out of microscopy business of Optronik A.S. | G18: =+'CF Deutsch'!G18 -> -146 | I18: =+'CF Deutsch'!I18 -> 0
C19: Interest income / expenses | F19: =+'CF Deutsch'!F19 -> (7) | G19: =+'CF Deutsch'!G19 -> 2223 | I19: =+'CF Deutsch'!I19 -> 1541
C20: Results from investments accounted for using the equity method | F20: =+'CF Deutsch'!F20 -> (7) | G20: =+'CF Deutsch'!G20 -> 0 | I20: =+'CF Deutsch'!I20 -> 0
C21: Result from other participations | F21: =+'CF Deutsch'!F21 -> (7) | G21: =+'CF Deutsch'!G21 -> 0 | I21: =+'CF Deutsch'!I21 -> 0
C22: Depreciation and amortisation | F22: =IF('CF Deutsch'!F22<>"",'CF Deutsch'!F22,"") -> (12) (13) | G22: =+'CF Deutsch'!G22 -> 9348 | I22: =+'CF Deutsch'!I22 -> 8531
C23: Appreciation and write-ups | F23: =IF('CF Deutsch'!F23<>"",'CF Deutsch'!F23,"") -> (13) | G23: =+'CF Deutsch'!G23 -> 0 | I23: =+'CF Deutsch'!I23 -> 0
C24: Impairment of financial assets | F24: =IF('CF Deutsch'!F24<>"",'CF Deutsch'!F24,"") -> (7) | G24: ='CF Deutsch'!G24 -> 0 | I24: ='CF Deutsch'!I24 -> 0
C25: Gains / losses on disposal of fixed assets | F25: =IF('CF Deutsch'!F25<>"",'CF Deutsch'!F25,"") ->  | G25: =+'CF Deutsch'!G25 -> 61 | I25: =+'CF Deutsch'!I25 -> -40
C26: Dividends received | F26: =IF('CF Deutsch'!F26<>"",'CF Deutsch'!F26,"") ->  | G26: =+'CF Deutsch'!G26 -> 0 | I26: =+'CF Deutsch'!I26 -> 0
C27: Interest received | F27: =IF('CF Deutsch'!F27<>"",'CF Deutsch'!F27,"") ->  | G27: =+'CF Deutsch'!G27 -> 928 | I27: =+'CF Deutsch'!I27 -> 2234
C28: Interest paid | F28: =IF('CF Deutsch'!F28<>"",'CF Deutsch'!F28,"") ->  | G28: =+'CF Deutsch'!G28 -> -620 | I28: =+'CF Deutsch'!I28 -> -910
C29: Income tax reimbursement | G29: =+'CF Deutsch'!G29 -> 1217 | I29: =+'CF Deutsch'!I29 -> 1608
C30: Income taxes paid | F30: =IF('CF Deutsch'!F30<>"",'CF Deutsch'!F30,"") ->  | G30: =+'CF Deutsch'!G30 -> -30170 | I30: =+'CF Deutsch'!I30 -> -22504
C31: Other non-scash income | G31: =+'CF Deutsch'!G31 -> -1327 | I31: =+'CF Deutsch'!I31 -> 0
B33: Changes in working capital: | F33: =IF('CF Deutsch'!F33<>"",'CF Deutsch'!F33,"") -> 
F34: =IF('CF Deutsch'!F34<>"",'CF Deutsch'!F34,"") -> 
C35: Trade receivables | F35: =IF('CF Deutsch'!F35<>"",'CF Deutsch'!F35,"") -> (18) | G35: =+'CF Deutsch'!G35 -> -1399 | I35: =+'CF Deutsch'!I35 -> -23555
C36: Inventories | F36: =IF('CF Deutsch'!F36<>"",'CF Deutsch'!F36,"") -> (17) | G36: =+'CF Deutsch'!G36 -> -11923 | I36: =+'CF Deutsch'!I36 -> -11895
C37: Other assets | F37: =IF('CF Deutsch'!F37<>"",'CF Deutsch'!F37,"") -> (16) (19) (20) | G37: =+'CF Deutsch'!G37 -> -6319 | I37: =+'CF Deutsch'!I37 -> -5234
C38: Trade payables | F38: =IF('CF Deutsch'!F38<>"",'CF Deutsch'!F38,"") ->  | G38: =+'CF Deutsch'!G38 -> -8517 | I38: =+'CF Deutsch'!I38 -> -4742
C39: Income tax liabilities | D39: Erhöhung Vorräte | F39: =IF('CF Deutsch'!F39<>"",'CF Deutsch'!F39,"") ->  | G39: =+'CF Deutsch'!G39 -> 0 | I39: =+'CF Deutsch'!I39 -> 0
C40: Provisions and financial liabilities | F40: =IF('CF Deutsch'!F40<>"",'CF Deutsch'!F40,"") -> (23) (24) (26) | G40: =+'CF Deutsch'!G40 -> 2320 | I40: =+'CF Deutsch'!I40 -> 3395
C41: Other liabilities | F41: =IF('CF Deutsch'!F41<>"",'CF Deutsch'!F41,"") -> (27) | G41: =+'CF Deutsch'!G41 -> 130 | I41: =+'CF Deutsch'!I41 -> -224
B43: Total adjustments | F43: =IF('CF Deutsch'!F43<>"",'CF Deutsch'!F43,"") ->  | G43: =+'CF Deutsch'!G43 -> -21839 | I43: =+'CF Deutsch'!I43 -> -28721
B44: Net cash provided by operating activities | F44: =IF('CF Deutsch'!F44<>"",'CF Deutsch'!F44,"") ->  | G44: =+'CF Deutsch'!G44 -> 22308 | I44: =+'CF Deutsch'!I44 -> 18191
F45: =IF('CF Deutsch'!F45<>"",'CF Deutsch'!F45,"") -> 
A46: Cash flows from investing activities: | F46: =IF('CF Deutsch'!F46<>"",'CF Deutsch'!F46,"") -> 
F47: =IF('CF Deutsch'!F47<>"",'CF Deutsch'!F47,"") -> 
B48: Change of restricted cash | F48: =IF('CF Deutsch'!F48<>"",'CF Deutsch'!F48,"") ->  | G48: =+'CF Deutsch'!G48 -> 0 | I48: =+'CF Deutsch'!I48 -> 0
B49: Investment in property, plant and equipment | F49: =IF('CF Deutsch'!F49<>"",'CF Deutsch'!F49,"") -> (13) | G49: =+'CF Deutsch'!G49 -> -4040 | I49: =+'CF Deutsch'!I49 -> -3206
B50: Investment in intangible assets | F50: =IF('CF Deutsch'!F50<>"",'CF Deutsch'!F50,"") -> (12) | G50: =+'CF Deutsch'!G50 -> -2242 | I50: =+'CF Deutsch'!I50 -> -579
B51: Investment in plan assets | F51: =IF('CF Deutsch'!F51<>"",'CF Deutsch'!F51,"") -> (24) | G51: =+'CF Deutsch'!G51 -> 0 | I51: =+'CF Deutsch'!I51 -> 0
B52: Proceeds from fixed assets | F52: =IF('CF Deutsch'!F52<>"",'CF Deutsch'!F52,"") ->  | G52: ='CF Deutsch'!G52 -> 411 | I52: =+'CF Deutsch'!I52 -> 151
B53: Proceeds from liquidation of investments accounted for using the equity method | F53: =IF('CF Deutsch'!F53<>"",'CF Deutsch'!F53,"") ->  | G53: ='CF Deutsch'!G53 -> 0 | I53: =+'CF Deutsch'!I53 -> 0
B54: Proceeds from fixed term deposits | F54: =IF('CF Deutsch'!F54<>"",'CF Deutsch'!F54,"") ->  | G54: ='CF Deutsch'!G54 -> 140000 | I54: =+'CF Deutsch'!I54 -> 120000
B55: Investments in fixed term deposits | F55: =IF('CF Deutsch'!F55<>"",'CF Deutsch'!F55,"") ->  | G55: ='CF Deutsch'!G55 -> -118000 | I55: =+'CF Deutsch'!I55 -> -140000
B56: Sale of securities | F56: =IF('CF Deutsch'!#REF!<>"",'CF Deutsch'!#REF!,"") ->  | G56: ='CF Deutsch'!G56 -> 0 | I56: =+'CF Deutsch'!I56 -> 0
B57: Acquisition of the surgical business (Carl Zeiss Surgical GmbH, Carl Zeiss Surgical Inc.) against grant of shares | F57: =IF('CF Deutsch'!F56<>"",'CF Deutsch'!F56,"") -> (28) | G57: ='CF Deutsch'!G57 -> 0 | I57: =+'CF Deutsch'!I57 -> 0
B58: Acquisition of IOL/ OVD-business IMEX Clinic S.L., Spain | F58: =+'CF Deutsch'!F58 -> (3) | G58: =+'CF Deutsch'!G58 -> -716 | I58: =+'CF Deutsch'!I58 -> -1907
B59: Acquisition of consolidated companies / businesses, net of cash acquired | F59: =IF('CF Deutsch'!#REF!<>"",'CF Deutsch'!#REF!,"") ->  | G59: ='CF Deutsch'!G59 -> 0 | I59: =+'CF Deutsch'!I59 -> 0
C60: (Optronik A.S., Türkei: | F60: =IF('CF Deutsch'!#REF!<>"",'CF Deutsch'!#REF!,"") ->  | G60: ='CF Deutsch'!G60 -> -10800 | I60: =+'CF Deutsch'!I60 -> 0
C61: Aaren Scientific Inc., USA:) | G61: ='CF Deutsch'!G61 -> -51206 | I61: =+'CF Deutsch'!I61 -> 0
B62: Carve-out of microscopy business of Optronik A.S. | G62: ='CF Deutsch'!G62 -> 2208 | I62: =+'CF Deutsch'!I62 -> 0
B64: Net cash used in investing activities | F64: =IF('CF Deutsch'!F64<>"",'CF Deutsch'!F64,"") ->  | G64: =+'CF Deutsch'!G64 -> -44385 | I64: =+'CF Deutsch'!I64 -> -25541
F65: =IF('CF Deutsch'!F65<>"",'CF Deutsch'!F65,"") -> 
A66: Cash flows from financing activities: | F66: =IF('CF Deutsch'!F66<>"",'CF Deutsch'!F66,"") -> 
B67: Proceeds from/(repayment of) short-term debt | F67: =IF('CF Deutsch'!F67<>"",'CF Deutsch'!F67,"") ->  | G67: =+'CF Deutsch'!G67 -> -101 | I67: =+'CF Deutsch'!I67 -> -22
B68: Proceeds from/(repayment of) noncurrent financial liabilities | F68: =IF('CF Deutsch'!F68<>"",'CF Deutsch'!F68,"") -> (25) | G68: =+'CF Deutsch'!G68 -> -277 | I68: =+'CF Deutsch'!I68 -> -254
B69: Repayments from current loans from related parties | F69: =IF('CF Deutsch'!F69<>"",'CF Deutsch'!F69,"") -> (35) | G69: =+'CF Deutsch'!G69 -> 0 | I69: =+'CF Deutsch'!I69 -> 0
B70: Payment from granting of current loans to related parties | I70: =+'CF Deutsch'!I70 -> 0
B71: Repayments from noncurrent loans from related parties | F71: =IF('CF Deutsch'!F71<>"",'CF Deutsch'!F71,"") -> (26) (35) | G71: =+'CF Deutsch'!G71 -> 0 | I71: =+'CF Deutsch'!I71 -> 0
B72: Cash inflow from transfer of provisions to Carl Zeiss Meditec Japan Co. Ltd. | G72: =+'CF Deutsch'!G72 -> 0 | I72: =+'CF Deutsch'!I72 -> 0
B73: (Increase) / decrease in treasury receivables | F73: =IF('CF Deutsch'!F73<>"",'CF Deutsch'!F73,"") -> (2t) (34) | G73: ='CF Deutsch'!G73 -> 64807 | I73: ='CF Deutsch'!I73 -> 44314
B74: Increase / (decrease) in treasury payables | F74: =+'CF Deutsch'!F74 -> (2t) (34) | G74: =+'CF Deutsch'!G74 -> 840 | I74: ='CF Deutsch'!I74 -> -4207
B75: Repayment of convertible bonds issued by Ioltech | F75: =IF('CF Deutsch'!F75<>"",'CF Deutsch'!F75,"") ->  | G75: ='CF Deutsch'!G75 -> 0 | I75: ='CF Deutsch'!I75 -> 0
B76: Change of leasing liabilities | F76: =IF('CF Deutsch'!F76<>"",'CF Deutsch'!F76,"") -> (29) | G76: =+'CF Deutsch'!G76 -> -890 | I76: =+'CF Deutsch'!I76 -> -901
B77: Proceeds from capital increase | F77: =IF('CF Deutsch'!F77<>"",'CF Deutsch'!F77,"") -> (24) | G77: =+'CF Deutsch'!G77 -> 0 | I77: =+'CF Deutsch'!I77 -> 0
B78: Costs from capital increase (net of taxes) | F78: =IF('CF Deutsch'!F78<>"",'CF Deutsch'!F78,"") -> (24) | G78: =+'CF Deutsch'!G78 -> 0 | I78: =+'CF Deutsch'!I78 -> 0
B79: Dividend payments to minority shareholders of Carl Zeiss Meditec Co. Ltd. (Japan) | F79: =IF('CF Deutsch'!F79<>"",'CF Deutsch'!F79,"") -> (13) | G79: =+'CF Deutsch'!G79 -> 0 | I79: =+'CF Deutsch'!I79 -> 0
B80: Dividend payments to shareholders of Carl Zeiss Meditec AG | F80: =IF('CF Deutsch'!F80<>"",'CF Deutsch'!F80,"") -> (10) | G80: =+'CF Deutsch'!G80 -> -36589 | I80: =+'CF Deutsch'!I80 -> -32524
B81: Acquisition of non-controlling interests | F81: =IF('CF Deutsch'!F81<>"",'CF Deutsch'!F81,"") ->  | G81: =+'CF Deutsch'!G81 -> 0 | I81: =+'CF Deutsch'!I81 -> 0
F82: =IF('CF Deutsch'!F82<>"",'CF Deutsch'!F82,"") -> 
B83: Net cash provided by/ (used in) financing activities | F83: =IF('CF Deutsch'!F83<>"",'CF Deutsch'!F83,"") ->  | G83: =+'CF Deutsch'!G83 -> 27790 | I83: =+'CF Deutsch'!I83 -> 6406
F84: =IF('CF Deutsch'!F84<>"",'CF Deutsch'!F84,"") -> 
A85: Effect of exchange rate fluctuation on cash and cash equivalents | F85: =IF('CF Deutsch'!F85<>"",'CF Deutsch'!F85,"") ->  | G85: =+'CF Deutsch'!G85 -> -282 | I85: =+'CF Deutsch'!I85 -> -968
A86: Net increase / (decrease) in cash and cash equivalents | F86: =IF('CF Deutsch'!F86<>"",'CF Deutsch'!F86,"") ->  | G86: =+'CF Deutsch'!G86 -> 5431 | I86: =+'CF Deutsch'!I86 -> -1912
A87: Cash and cash equivalents, beginning of reporting period | F87: =IF('CF Deutsch'!F87<>"",'CF Deutsch'!F87,"") -> (21) | G87: =+'CF Deutsch'!G87 -> 6286 | I87: =+'CF Deutsch'!I87 -> 9526
A88: Cash and cash equivalents, end of reporting period | F88: =IF('CF Deutsch'!F88<>"",'CF Deutsch'!F88,"") -> (21) | G88: =+'CF Deutsch'!G88 -> 11717 | I88: =+'CF Deutsch'!I88 -> 7614
A91: * The prior-year figures are adjusted due to amended IAS 19 regulations.
A92: The following notes to the consolidated financial statements are an integral part of the unaudited consolidated financial statements.

Sheet CF_AR (hidden)
A1: Carl Zeiss Meditec AG
A2: selected positions
A3: Consolidated statement of cash flow (US GAAP)
F5: 1. October 2001 - | H5: 1. October 2002 -
F6: 30. June 2002 | H6: 30. June 2003
F7: Tsd. Euro | H7: Tsd. Euro
A10: Cash flow from operating activities
C11: Net income | F11: =+'CF Deutsch'!G12 -> 44147 | H11: =+'CF Deutsch'!I12 -> 46912
C12: Loss on disposal of discontinued operations | F12: =+'CF Deutsch'!#REF! ->  | H12: =+'CF Deutsch'!#REF! -> 
C13: Depreciation and amortisation | F13: =+'CF Deutsch'!G22 -> 9348 | H13: =+'CF Deutsch'!I22 -> 8531
C14: Trade accounts receivable | F14: =+'CF Deutsch'!G35 -> -1399 | H14: =+'CF Deutsch'!I35 -> -23555
C15: Inventories | F15: =+'CF Deutsch'!G36 -> -11923 | H15: =+'CF Deutsch'!I36 -> -11895
C16: Trade accounts payable | F16: =+'CF Deutsch'!G38 -> -8517 | H16: =+'CF Deutsch'!I38 -> -4742
C17: Accrued tax expenses | D17: Erhöhung Vorräte | F17: =+'CF Deutsch'!G39 -> 0 | H17: =+'CF Deutsch'!I39 -> 0
C18: Other accrued expenses and liabilities | D18: (Erhöhung) / Verringerung der aktiven Rechnungs- | F18: =+'CF Deutsch'!G40 -> 2320 | H18: =+'CF Deutsch'!I40 -> 3395
A20: Cash flow from investing activities | F20: =+'CF Deutsch'!G64 -> -44385 | H20: =+'CF Deutsch'!I64 -> -25541
A22: Cash flow from financing activities
B23: Proceeds from issuance of short-term debt from related parties | F23: =+'CF Deutsch'!G69 -> 0 | H23: =+'CF Deutsch'!I69 -> 0
B24: Increase / (decrease) in liabilities due to Treasury | F24: =+'CF Deutsch'!#REF! ->  | H24: =+'CF Deutsch'!#REF! -> 
B25: (Increase) / decrease in accounts receivable due to Treasury | F25: =+'CF Deutsch'!G73 -> 64807 | H25: =+'CF Deutsch'!I73 -> 44314
A27: Net increase in cash (compared to Oct 1) | F27: =+'CF Deutsch'!G86 -> 5431 | H27: =+'CF Deutsch'!I86 -> -1912
